Cogmind - Beta 17.1 @@@ ROGUE MODE // 2026.08.27 @ 15:21:23 Player: Figgis Result: Destroyed by H-66 Slayer with Gauss Rifle Performance ------------- Evolutions (3) 1500 Regions Visited (10) 2000 Robots Destroyed (95) 475 Value Destroyed (3262) 3262 Prototype IDs (18) 360 Alien Tech Used (0) 0 Bonus (382) 382 TOTAL SCORE: 7979 Bonus ------- Follower Combat Kills 82 Met Data Miner 300 Cogmind --------- Core Integrity 0/700 Matter 296/300 Energy 99/100 System Corruption 3% Temperature Cool (9) Movement Core (50) Location -6/Proximity Caves Parts ------- > --- POWER (2) -------- (None) > --- PROPULSION (4) --- (None) > --- UTILITY (5) ------ (None) > --- WEAPON (2) ------- (None) > --- INVENTORY (5) ---- Improved Deuterium Engine Reinforced Deuterium Engine Grenade Launcher Molecular Deconstructor Peak State ------------ > --- POWER ------------ Light Nuclear Core Reinforced Deuterium Engine > --- PROPULSION ------- Medium Treads Medium Treads Medium Treads Medium Treads > --- UTILITY ---------- Large Storage Unit Active Sensor Suite Improved Medium Armor Plating > --- WEAPON ----------- Impact Mace Impact Mace > --- INVENTORY -------- Deuterium Engine Light Treads Light Treads Light Treads Light Treads Cesium-ion Thruster Signal Interpreter Hardened Heavy Armor Plating Heavy Laser Heavy Assault Rifle Minigun Minigun Grenade Launcher [Rating: 68] Favorites ----------- Power Ion Engine Engine Ion Engine Power Core Light Nuclear Core Propulsion Light Treads Treads Light Treads Leg Aluminum Leg Flight Unit Cesium-ion Thruster Utility Large Storage Unit Device Heat Sink Storage Large Storage Unit Protection Hardened Light Armor Plating Weapon Autogun Energy Gun Medium Laser Energy Cannon Particle Cannon Ballistic Gun Autogun Launcher Grenade Launcher Impact Weapon Impact Mace Build | -11 -10 -10 -9 -9 -8 -7 -7 -7 -7 -6 ------- Run | Yrd Mat Min Mat Min Mat Fac Low Low Dat Pro Slots Evolved 6 | . . . 2 . 2 2 . . . . Power 1 | . . . . . . 1 . . . . Propulsion 2 | . . . 1 . 1 . . . . . Utility 3 | . . . 1 . 1 1 . . . . Weapon . | . . . . . . . . . . . Parts Attached 66 | 3 11 1 11 3 25 10 . 1 . 1 Power 8 | . 1 . 1 1 3 2 . . . . Engine 5 | . 1 . 1 1 1 1 . . . . Core 3 | . . . . . 2 1 . . . . Reactor . | . . . . . . . . . . . Propulsion 23 | 2 2 1 3 . 12 2 . 1 . . Treads 19 | 2 1 . 3 . 12 1 . . . . Leg 1 | . 1 . . . . . . . . . Wheel . | . . . . . . . . . . . Hover . | . . . . . . . . . . . Flight 3 | . . 1 . . . 1 . 1 . . Utility 17 | . 3 . 4 2 4 3 . . . 1 Device 9 | . 1 . 2 1 3 1 . . . 1 Storage 4 | . 2 . 1 . 1 . . . . . Processor . | . . . . . . . . . . . Hackware . | . . . . . . . . . . . Protection 4 | . . . 1 1 . 2 . . . . Artifact . | . . . . . . . . . . . Weapon 18 | 1 5 . 3 . 6 3 . . . . Energy Gun 3 | 1 2 . . . . . . . . . Energy Cannon 1 | . 1 . . . . . . . . . Ballistic Gun 11 | . 2 . 3 . 5 1 . . . . Ballistic Cannon . | . . . . . . . . . . . Launcher 1 | . . . . . 1 . . . . . Special Weapon . | . . . . . . . . . . . Impact Weapon 2 | . . . . . . 2 . . . . Slashing Weapon . | . . . . . . . . . . . Piercing Weapon . | . . . . . . . . . . . Special Melee Weapon . | . . . . . . . . . . . Unidentified Prototypes 2 | . . . . . 1 1 . . . . Parts Lost 24 | . . . 1 . 10 8 . . . 5 Power 4 | . . . . . 3 1 . . . . Propulsion 11 | . . . . . 4 4 . . . 3 Utility 5 | . . . 1 . 2 2 . . . . Weapon 4 | . . . . . 1 1 . . . 2 Highest Loss Streak 8 | . . . 1 . 8 3 . . . 3 To Critical Strikes . | . . . . . . . . . . . Average Backups 9 | 3 7 9 10 11 11 12 3 3 4 4 Power 2 | 1 2 3 3 2 1 1 1 1 2 2 Propulsion 2 | . . 1 1 3 3 4 . . . . Utility 1 | . . 1 1 1 2 2 . . . . Weapon 3 | 1 3 4 3 4 4 4 2 2 2 2 Tool/Special . | . . . . . . . . . . . Unused Backups 9 | . . . 1 . 2 5 . . . 1 Power 2 | . . . 1 . . . . . . 1 Propulsion 2 | . . . . . 1 1 . . . . Utility 2 | . . . . . 1 1 . . . . Weapon 3 | . . . . . . 3 . . . . Tool/Special . | . . . . . . . . . . . Average Slot Usage (%) 81 | . 93 100 92 100 85 70 28 31 38 21 Engine 8 | . 13 14 11 11 3 6 . . . . Core 1 | . . . . . 5 5 . . . . Treads 27 | . 27 28 32 33 35 26 7 7 7 2 Flight 1 | . . . . . . . 7 8 15 5 Device 9 | . 8 14 12 11 10 7 . . . 1 Storage 9 | . 13 14 11 11 9 6 . . . . Protection 3 | . . . 2 11 3 2 . . . . Energy Cannon 2 | . 8 14 . . . . . . . . Ballistic Gun 13 | . 15 14 21 22 17 6 . . . . Impact Weapon 2 | . . . . . . 5 13 15 15 11 Peak Build Rating 68 | 3 9 9 14 16 56 68 14 19 19 24 Average Rating 23 | 1 7 8 12 15 35 53 13 14 19 12 On Entrance 14 | . 3 9 9 13 16 56 5 14 19 19 Avg Prop Armor Cover (%) 24 | 34 34 . . . . 30 23 22 20 18 Naked Turns 39 | . . . . . . . . . . 39 Heaviest Build 73 | 1 32 32 35 35 45 73 6 6 6 7 Greatest Support 112 | 3 40 40 60 60 112 112 6 12 12 12 Greatest Overweight (x) 1 | . . . . . 1 1 . . . 1 Average Overweight (x) . | . . . . . . . . . . . Largest Inventory Capacity 15 | 5 15 15 15 15 15 15 5 5 5 5 Average Capacity 13 | 5 13 15 15 15 15 13 5 5 5 5 Most Carried 15 | 5 9 14 15 15 15 15 5 5 5 5 Average Carried 11 | 4 7 10 14 14 13 13 3 3 5 5 Final Capacity 15 | 5 15 15 15 15 15 5 5 5 5 5 Final Carried 15 | 5 9 14 15 15 15 5 3 5 5 5 Class Distribution -------------------- 52% | Mutant 24% | Scavenger-Mutant 10% | Skirmisher 6% | Assassin 5% | Scavenger-Skirmisher Dominant Class ---------------- Mutant | -10/Materials Mutant | -10/Mines Mutant | -9/Materials Scavenger-Mutant | -9/Mines Scavenger-Skirmisher | -8/Materials Skirmisher | -7/Factory Mutant | -7/Lower Caves Mutant | -7/Lower Caves Mutant | -7/Data Miner Mutant | -6/Proximity Caves Resources | -11 -10 -10 -9 -9 -8 -7 -7 -7 -7 -6 ----------- Run | Yrd Mat Min Mat Min Mat Fac Low Low Dat Pro Matter Collected 2524 | 189 268 76 481 219 847 354 55 . . 35 Remotely . | . . . . . . . . . . . Salvage Created 3497 | . 443 192 802 317 1189 522 . . . 32 Parts 198 | . 29 13 59 23 55 16 . . . 3 Haulers Intercepted 1 | . . . 1 . . . . . . . Recyclers Shooed 2 | . 1 . . . 1 . . . . . Parts Field Recycled . | . . . . . . . . . . . Retrieved Matter . | . . . . . . . . . . . Parts Self-Destructed 6 | . . . . . . . . . . 6 Prevented . | . . . . . . . . . . . Parts Restored . | . . . . . . . . . . . Kills | -11 -10 -10 -9 -9 -8 -7 -7 -7 -7 -6 ------- Run | Yrd Mat Min Mat Min Mat Fac Low Low Dat Pro Combat Hostiles Destroyed 84 | . 10 8 15 11 24 15 . . . 1 Melee 8 | . . . . . . 7 . . . 1 Guns 52 | . 5 2 15 11 16 3 . . . . Cannons 11 | . 5 6 . . . . . . . . AOE 8 | . . . . . 8 . . . . . Classes Destroyed 13 | . 4 . 3 . 5 1 . . . . Worker 2 | . . . 1 . 1 . . . . . Builder 1 | . . . . . 1 . . . . . Hauler 1 | . . . 1 . . . . . . . Recycler 2 | . 1 . . . 1 . . . . . Mechanic 1 | . . . . . 1 . . . . . Watcher 4 | . 1 . 2 . 1 . . . . . Swarmer 19 | . 3 6 . 6 . 4 . . . . Grunt 49 | . 7 2 11 5 17 7 . . . . Duelist 1 | . . . . . 1 . . . . . Sentry 9 | . . . 4 . 2 3 . . . . Hunter 3 | . . . . . 3 . . . . . Programmer 2 | . . . . . . 1 . . . 1 Heavy 1 | . . . . . 1 . . . . . Best Kill Streak 15 | . 4 3 5 3 15 3 . . . 1 Combat Bots Only 10 | . 3 3 4 3 10 3 . . . 1 Max Kills in Single Turn 2 | . 1 1 1 1 2 1 . . . 1 Gunslinging . | . . . . . . . . . . . Exploded 2 | . . . . . 2 . . . . . Melee 1 | . . . . . . 1 . . . 1 Uniques/NPCs Destroyed . | . . . . . . . . . . . Combat | -11 -10 -10 -9 -9 -8 -7 -7 -7 -7 -6 -------- Run | Yrd Mat Min Mat Min Mat Fac Low Low Dat Pro Hostile Shots Fired 676 | . 49 31 58 26 166 266 . . . 80 Missed 187 | . 18 7 10 4 33 77 . . . 38 Hits 489 | . 31 24 48 22 133 189 . . . 42 Melee 1 | . . . . . 1 . . . . . Projectile 488 | . 31 24 48 22 132 189 . . . 42 Critical Strikes 16 | . 1 . 1 1 10 2 . . . 1 Part Disruptions 1 | . . . . . . 1 . . . . Damage Taken 6729 | . 347 206 608 207 2395 2225 . . . 741 Core 1322 | . 109 46 73 12 381 233 . . . 468 Absorbed by Shields . | . . . . . . . . . . . Core Remaining (%) 61 | 100 . 38 . 78 30 . . . . . Volleys Fired 232 | . 35 15 49 20 91 22 . . . . Largest 2 | . 2 2 2 2 2 2 . . . . Hottest 88 | . 88 88 46 46 53 50 . . . . Shots Fired 443 | . 69 32 98 40 170 34 . . . . Gun 390 | . 46 16 98 40 156 34 . . . . Cannon 39 | . 23 16 . . . . . . . . Launcher 14 | . . . . . 14 . . . . . Special . | . . . . . . . . . . . Kinetic 390 | . 46 16 98 40 156 34 . . . . Thermal 39 | . 23 16 . . . . . . . . Explosive 14 | . . . . . 14 . . . . . Electromagnetic . | . . . . . . . . . . . Robot Hit Streak 19 | . 11 10 12 12 19 11 . . . . Robot Miss Streak 6 | . 4 6 4 4 5 2 . . . . Penetration Max . | . . . . . . . . . . . Secondary Targets 2 | . . . 1 . 1 . . . . . Max Gunslinging Chain 1 | . . . 1 . 1 . . . . . Shots Hit Robots 339 | . 43 14 65 25 116 73 . . . 3 Core Hits 165 | . 21 9 29 15 74 16 . . . 1 Critical Kills 3 | . . . . . . 3 . . . . Critical Parts Destroyed 7 | . . . . . 1 6 . . . . Critical Strikes 10 | . . . . . 1 9 . . . . Destroy 1 | . . . . . 1 . . . . . Smash 9 | . . . . . . 9 . . . . Melee Attacks 71 | . . . . . . 58 . 3 . 10 Impact 71 | . . . . . . 58 . 3 . 10 Slashing . | . . . . . . . . . . . Piercing . | . . . . . . . . . . . Sneak Attacks . | . . . . . . . . . . . Combat Hostiles . | . . . . . . . . . . . Follow-up Attacks 10 | . . . . . . 10 . . . . Damage Inflicted 7794 | . 640 254 1034 382 2806 2531 . . . 147 Guns 4309 | . 333 49 1027 382 1889 629 . . . . Cannons 512 | . 307 205 . . . . . . . . Explosions 917 | . . . . . 917 . . . . . Melee 2049 | . . . . . . 1902 . . . 147 Ramming 7 | . . . 7 . . . . . . . Kinetic 4309 | . 333 49 1027 382 1889 629 . . . . Thermal 512 | . 307 205 . . . . . . . . Explosive 917 | . . . . . 917 . . . . . Electromagnetic . | . . . . . . . . . . . Impact 2049 | . . . . . . 1902 . . . 147 Slashing . | . . . . . . . . . . . Piercing . | . . . . . . . . . . . Highest Corruption 3 | . 2 2 . . . 2 2 2 2 3 Average Corruption 2 | . 2 2 . . . 1 2 2 2 2 Corruption Purged . | . . . . . . . . . . . Corruption Blocked . | . . . . . . . . . . . Effects 52 | . 14 14 . . . 13 6 3 1 1 Message Errors 11 | . 2 4 . . . 3 1 1 . . Matter Fused 11 | . 1 1 . . . 3 2 2 1 1 Heat Flow Errors 6 | . 3 1 . . . 2 . . . . Energy Discharges 7 | . 1 2 . . . 2 2 . . . Data Loss (minor) 8 | . 4 3 . . . 1 . . . . Data Loss (major) 4 | . 2 1 . . . 1 . . . . Misfires 3 | . . 2 . . . 1 . . . . Alerts 1 | . . . . . . . 1 . . . Weapon Failures 1 | . 1 . . . . . . . . . Overload Shots . | . . . . . . . . . . . Overflow Damage 502 | . 5 1 . . . 464 . . . 32 Projectiles 6 | . 5 1 . . . . . . . . Explosions . | . . . . . . . . . . . Melee 496 | . . . . . . 464 . . . 32 Knockbacks 7 | . . . . . . 6 . . . 1 Impact 6 | . . . . . . 5 . . . 1 Kinetic . | . . . . . . . . . . . Secondary 1 | . . . . . . 1 . . . . Self-Inflicted Damage . | . . . . . . . . . . . Shots . | . . . . . . . . . . . Rammed 1 | . . . 1 . . . . . . . Targets Rammed 1 | . . . 1 . . . . . . . Kicked . | . . . . . . . . . . . Crushed . | . . . . . . . . . . . Highest Temperature 255 | . 255 246 17 20 73 172 . . . 12 Average Temperature 43 | . 79 59 7 20 21 34 . . . 12 Received Heat Transfer 2368 | . 174 39 294 63 972 696 . . . 130 Siege Activations . | . . . . . . . . . . . Martial Activations . | . . . . . . . . . . . Shielding Activations . | . . . . . . . . . . . Robots Disrupted . | . . . . . . . . . . . Combat Hostiles . | . . . . . . . . . . . Robots Corrupted 5 | . . . . . . 5 . . . . Combat Hostiles 5 | . . . . . . 5 . . . . Parts Fried 3 | . . . . . . 3 . . . . Impact Corruptions 16 | . . . . . . 15 . . . 1 Robots Melted . | . . . . . . . . . . . Combat Hostiles . | . . . . . . . . . . . Parts Melted 2 | . 1 1 . . . . . . . . Heat Transferred 925 | . 555 370 . . . . . . . . Parts Sabotaged . | . . . . . . . . . . . Parts Stolen . | . . . . . . . . . . . Parts Stripped . | . . . . . . . . . . . Power Chain Reactions . | . . . . . . . . . . . Alert | -11 -10 -10 -9 -9 -8 -7 -7 -7 -7 -6 ------- Run | Yrd Mat Min Mat Min Mat Fac Low Low Dat Pro Maximum Alert Level 1 | . . . . . 1 1 . . . . Low Security (%) 88 | 100 100 100 100 100 61 77 . . . . Level 1 11 | . . . . . 38 22 . . . . Level 2 . | . . . . . . . . . . . Level 3 . | . . . . . . . . . . . Level 4 . | . . . . . . . . . . . Level 5 . | . . . . . . . . . . . High Security . | . . . . . . . . . . . Max Security . | . . . . . . . . . . . Peak Influence 314 | . 134 111 113 86 307 314 . . . . Initial 123 | . . 1 . 15 . 123 . . . . Average 61 | . 39 22 44 25 122 93 . . . . Influence Increases 2787 | . 254 190 464 290 730 657 . . . 202 Destroy 0b10 Robot/C 1720 | . 200 160 300 220 500 300 . . . 40 Destroy 0b10 Robot/NC 55 | . 10 . 20 . 25 . . . . . Destroy Leader 420 | . 42 30 86 40 122 80 . . . 20 Allied During Kill 19 | . . . . . 12 . . . . 7 Successful Hack 65 | . . . 11 . . 54 . . . . Destroy Structure 48 | . 2 . 2 . 41 3 . . . . Partial Spotted 15 | . . . . . . 15 . . . . Lose Combat Pursuer 345 | . . . 45 30 30 105 . . . 135 Active Sensor Use 100 | . . . . . . 100 . . . . Influence Decreases 2710 | . 248 196 425 329 459 640 248 40 . 125 Entered New Map 293 | . . 5 . 24 . 148 108 8 . . Time Decay 2058 | . 248 191 328 305 312 422 140 32 . 80 Lost Part 195 | . . . 10 . 90 70 . . . 25 Lost Ally 77 | . . . . . 57 . . . . 20 Purge Threat 87 | . . . 87 . . . . . . . Squads Dispatched 16 | . 1 . 2 . 3 9 . . . 1 Investigation 2 | . 1 . . . . 1 . . . . Extermination 3 | . . . . . . 3 . . . . Reinforcement 7 | . . . 2 . 3 2 . . . . Assault 1 | . . . . . . . . . . 1 Garrison 3 | . . . . . . 3 . . . . Intercept . | . . . . . . . . . . . Searches Triggered . | . . . . . . . . . . . Construction Impeded . | . . . . . . . . . . . Haulers Reinforced . | . . . . . . . . . . . Active Scanning Responses 1 | . . . . . . 1 . . . . Cargo Convoy Interrupts . | . . . . . . . . . . . Stealth | -11 -10 -10 -9 -9 -8 -7 -7 -7 -7 -6 --------- Run | Yrd Mat Min Mat Min Mat Fac Low Low Dat Pro Distress Signals 4 | . . . 1 . 2 1 . . . . Communications Jammed . | . . . . . . . . . . . Distress Signals . | . . . . . . . . . . . Times Spotted 148 | . 18 7 28 17 37 27 . . . 14 Peak Tracking Total 9 | . 5 3 6 4 5 5 . . . 9 Tactical Retreats 15 | . . . 3 1 2 5 . . . 4 Traps | -11 -10 -10 -9 -9 -8 -7 -7 -7 -7 -6 ------- Run | Yrd Mat Min Mat Min Mat Fac Low Low Dat Pro Traps Triggered 3 | . 2 . . . . 1 . . . . Indirectly . | . . . . . . . . . . . Trap Hack Attempts . | . . . . . . . . . . . Triggered . | . . . . . . . . . . . Disarmed . | . . . . . . . . . . . Reprogrammed . | . . . . . . . . . . . Reused . | . . . . . . . . . . . Traps Extracted . | . . . . . . . . . . . Installed . | . . . . . . . . . . . Triggered . | . . . . . . . . . . . Most Traps Carried 4 | . . 4 4 4 4 . . . . . Machines | -11 -10 -10 -9 -9 -8 -7 -7 -7 -7 -6 ---------- Run | Yrd Mat Min Mat Min Mat Fac Low Low Dat Pro Machines Disabled 1 | . . . . . . . . 1 . . Max in Single Turn 1 | . . . . . . . . 1 . . Machines Repaired . | . . . . . . . . . . . Machines Dismantled . | . . . . . . . . . . . Machines Sabotaged . | . . . . . . . . . . . Overloaded Fab Kills . | . . . . . . . . . . . Hacking | -11 -10 -10 -9 -9 -8 -7 -7 -7 -7 -6 --------- Run | Yrd Mat Min Mat Min Mat Fac Low Low Dat Pro Machines Accessed 26 | . 4 1 6 . 1 8 . 2 4 . Terminals 13 | . 4 1 5 . . 3 . . . . Fabricators . | . . . . . . . . . . . Repair Stations 1 | . . . . . . 1 . . . . Recycling Units 2 | . . . . . 1 1 . . . . Scanalyzers 2 | . . . 1 . . 1 . . . . Garrison Access 2 | . . . . . . 2 . . . . Total Hacks 78 | . 9 3 15 . 1 14 . 7 29 . Successful 50 | . 1 1 7 . 1 4 . 7 29 . Failed 28 | . 8 2 8 . . 10 . . . . Catastrophic 13 | . 1 1 5 . . 6 . . . . Database Lockouts . | . . . . . . . . . . . Manual 12 | . 6 2 3 . . . . 1 . . Terminals 32 | . 9 3 13 . . 7 . . . . Fabricators . | . . . . . . . . . . . Repair Stations 1 | . . . . . . 1 . . . . Recycling Units 4 | . . . . . 1 3 . . . . Scanalyzers 3 | . . . 2 . . 1 . . . . Garrison Access 2 | . . . . . . 2 . . . . Terminal Hacks 46 | . 1 1 5 . . 3 . 7 29 . Record 18 | . . 1 . . . 1 . 6 10 . Part Schematic 10 | . . . . . . . . . 10 . Robot Schematic 6 | . . . . . . . . . 6 . Robot Analysis 2 | . . . 2 . . . . . . . Prototype ID Bank 5 | . 1 . . . . 1 . . 3 . Open Door 1 | . . . . . . . . 1 . . Fabricator Index 1 | . . . . . . 1 . . . . Unreport Threat 1 | . . . 1 . . . . . . . Hauler Manifests 1 | . . . 1 . . . . . . . Zone Layout 1 | . . . 1 . . . . . . . Fabricator Hacks . | . . . . . . . . . . . Repair Station Hacks . | . . . . . . . . . . . Recycling Unit Hacks 1 | . . . . . 1 . . . . . Report Inventory 1 | . . . . . 1 . . . . . Scanalyzer 3 | . . . 2 . . 1 . . . . Retrieve Study 3 | . . . 2 . . 1 . . . . Garrison Access Hacks . | . . . . . . . . . . . Unauthorized Hacks . | . . . . . . . . . . . Terminals . | . . . . . . . . . . . Fabricators . | . . . . . . . . . . . Repair Stations . | . . . . . . . . . . . Recycling Units . | . . . . . . . . . . . Scanalyzers . | . . . . . . . . . . . Garrison Access . | . . . . . . . . . . . Data Cores Recovered . | . . . . . . . . . . . Used . | . . . . . . . . . . . Hacking Detections 18 | . 4 1 5 . . 8 . . . . Full Trace Events 1 | . . 1 . . . . . . . . Feedback Events . | . . . . . . . . . . . Feedback Blocked . | . . . . . . . . . . . Robot Schematics Acquired 6 | . . . . . . . . . 6 . Robots Built . | . . . . . . . . . . . Authchips . | . . . . . . . . . . . Time . | . . . . . . . . . . . Total Robot Build Rating . | . . . . . . . . . . . Part Schematics Acquired 10 | . . . . . . . . . 10 . Parts Built . | . . . . . . . . . . . Authchips . | . . . . . . . . . . . Time . | . . . . . . . . . . . Total Part Build Rating . | . . . . . . . . . . . Part Studies Acquired 3 | . . . 2 . . 1 . . . . Parts Repaired . | . . . . . . . . . . . Time . | . . . . . . . . . . . Parts Recycled . | . . . . . . . . . . . Recycled Matter . | . . . . . . . . . . . Retrieved Matter . | . . . . . . . . . . . Retrieved Components . | . . . . . . . . . . . Parts Scanalyzed . | . . . . . . . . . . . Part Schematics Acquired . | . . . . . . . . . . . Parts Damaged . | . . . . . . . . . . . Bothacking | -11 -10 -10 -9 -9 -8 -7 -7 -7 -7 -6 ------------ Run | Yrd Mat Min Mat Min Mat Fac Low Low Dat Pro Used RIF Installer . | . . . . . . . . . . . Robots Hacked . | . . . . . . . . . . . Non-combat . | . . . . . . . . . . . Combat . | . . . . . . . . . . . Robot Hacks Applied . | . . . . . . . . . . . Relay Couplers Released . | . . . . . . . . . . . Fabnet Peak Effective % . | . . . . . . . . . . . Robots Rewired . | . . . . . . . . . . . Allies Hacked . | . . . . . . . . . . . Hacks Repelled . | . . . . . . . . . . . Allies | -11 -10 -10 -9 -9 -8 -7 -7 -7 -7 -6 -------- Run | Yrd Mat Min Mat Min Mat Fac Low Low Dat Pro Total Allies 4 | . . . . 3 . . . . . 1 Largest Group 3 | . . . . 3 3 . . . . 1 Highest-Rated Group 96 | . . . . 40 40 . . . . 96 Highest-Rated Ally 96 | . . . . 16 16 . . . . 96 Total Orders . | . . . . . . . . . . . Ally Attacks 13 | . . . . . 9 . . . . 4 Total Damage 307 | . . . . . 114 . . . . 193 Kills 2 | . . . . . 1 . . . . 1 Allies Corrupted . | . . . . . . . . . . . Allies Melted . | . . . . . . . . . . . Intel | -11 -10 -10 -9 -9 -8 -7 -7 -7 -7 -6 ------- Run | Yrd Mat Min Mat Min Mat Fac Low Low Dat Pro Active Infowar (turns) 1639 | . . . . . 393 1246 . . . . A.S.S. 1496 | . . . . . 250 1246 . . . . Traps 143 | . . . . . 143 . . . . . Robot Analysis Total 2 | . . . 2 . . . . . . . Derelict Logs Recovered 8 | . . 2 . 3 . . . 2 . 1 Drone Launches . | . . . . . . . . . . . Drone Recoveries . | . . . . . . . . . . . Exploration | -11 -10 -10 -9 -9 -8 -7 -7 -7 -7 -6 ------------- Run | Yrd Mat Min Mat Min Mat Fac Low Low Dat Pro Turns Passed 7530 | 31 960 911 941 1170 1035 1584 299 309 45 245 Spaces Moved 5287 | 42 517 519 459 667 439 1092 540 534 87 391 Core 239 | 42 18 . . . . . . . . 179 Treads 3302 | . 499 519 459 667 439 719 . . . . Legs . | . . . . . . . . . . . Wheels . | . . . . . . . . . . . Hover . | . . . . . . . . . . . Flight 1746 | . . . . . . 373 540 534 87 212 Fastest Speed 35 | 50 50 160 160 160 160 55 55 52 52 35 Average Speed 120 | 50 156 160 160 160 162 124 55 54 52 54 Slowest Speed 250 | 50 160 160 160 160 250 220 55 55 52 100 Overloaded Moves . | . . . . . . . . . . . Propulsion Burnouts . | . . . . . . . . . . . Robots Hopped 6 | . . . . . . 4 . 2 . . Potential Cave-ins 3 | . . . . . . . . . . 3 Cave-ins Triggered . | . . . . . . . . . . . Exploration Rate (%) 57 | 4 63 97 50 98 47 28 66 58 73 46 Regions Visited 10 Branch Regions 6 Pre-discovered Areas 2 | . . 1 . . . . . . 1 . Known Exits Taken 3 | . . . 1 . 1 . . 1 . . Unknown Exits Taken 7 | 1 1 1 . 1 . 1 1 . 1 . Scrap Searched 7 | . . 1 . 4 . . 1 . . 1 Spaces Dug 11 | . . . . . . 3 . 2 . 6 Terrain Destroyed 63 | . . . . . 52 3 . 2 . 6 Melee 11 | . . . . . . 3 . 2 . 6 Projectile . | . . . . . . . . . . . AOE 52 | . . . . . 52 . . . . . Terrain Rammed . | . . . . . . . . . . . Walls Destroyed . | . . . . . . . . . . . Machines Disabled . | . . . . . . . . . . . Actions | -11 -10 -10 -9 -9 -8 -7 -7 -7 -7 -6 --------- Run | Yrd Mat Min Mat Min Mat Fac Low Low Dat Pro Total 5943 | 50 601 570 591 738 620 1198 541 544 86 404 Wait 200 | . 25 28 48 45 30 18 . 5 . 1 Move 5266 | 41 516 518 458 666 438 1083 539 530 86 391 Hop 5 | . . . . . . 4 . 1 . . Pick Up 56 | 6 11 6 10 1 16 3 . 3 . . Fast Attach 11 | 2 . . 3 1 3 1 . . . 1 Attach 30 | 1 6 1 2 . 11 6 2 1 . . Detach 2 | . . . . . . 2 . . . . Swap 34 | . 5 1 7 2 14 5 . . . . Drop 47 | . 3 1 13 3 17 8 . 1 . 1 Fire 232 | . 35 15 49 20 91 22 . . . . Melee 59 | . . . . . . 46 . 3 . 10 Ram . | . . . . . . . . . . . Kick . | . . . . . . . . . . . Crush 1 | . . . 1 . . . . . . . Escape Stasis . | . . . . . . . . . . . Rewire . | . . . . . . . . . . . Trap . | . . . . . . . . . . . Miscellaneous . | . . . . . . . . . . . Route ------- -11/Scrapyard -10/Materials (discovered 3 exits: *Mat x2 / *Min) -10/Mines (discovered 2 exits: *Mat x2) -9/Materials (discovered 5 exits: *Mat x2 / *Min x2 / [*Sto]) -9/Mines (discovered 3 exits: *Mat x2 / *Exi) -8/Materials -7/Factory -7/Lower Caves -7/Lower Caves (discovered 2 exits: [*Fac] / *Dat) -7/Data Miner -6/Proximity Caves History --------- Turn | Location | Event 13 | -11/Scrapyard | Discovered new exit (range 16) 32 | -11/Scrapyard | Entered Materials 302 | -10/Materials | Build established: Mutant 419 | -10/Materials | Discovered new exit (range 14) 831 | -10/Materials | Discovered new exit (range 4) 928 | -10/Materials | Discovered new exit (range 13) 992 | -10/Materials | Entered Mines 1002 | -10/Mines | Core integrity fell below 50% 1169 | -10/Mines | Discovered new exit (range 9) 1423 | -10/Mines | Learned location of Recycling (-9) 1634 | -10/Mines | Found a hidden stash of uninstalled traps 1890 | -10/Mines | Discovered new exit (range 8) 1903 | -10/Mines | Entered Materials 1903 | -9/Materials | Evolved 2 slots: Propulsion x1, Utility x1 1904 | -9/Materials | Identified exit to Mines 2326 | -9/Materials | Discovered new exit (range 4) 2471 | -9/Materials | Discovered new exit (range 6) 2586 | -9/Materials | Discovered new exit (range 11) 2844 | -9/Materials | Entered Mines 2847 | -9/Mines | Met a Derelict bent on vengeance 2905 | -9/Mines | Learned 2 Materials zone layouts 2926 | -9/Mines | Build established: Scavenger-Mutant 2928 | -9/Mines | A weapon hastily lodged in a ceiling crevice suddenly fell to the ground 3442 | -9/Mines | Discovered new exit (range 6) 3564 | -9/Mines | Learned Materials emergency access door positions 3613 | -9/Mines | Discovered new exit (range 8) 3625 | -9/Mines | Identified exit to Exiles 3697 | -9/Mines | Assisted by bots powering up and referring to "LRC-V3" 3713 | -9/Mines | Deemed a non-threat by the Exiles lab entrance 4014 | -9/Mines | Entered Materials 4014 | -8/Materials | Accompanied by 3 allies 4014 | -8/Materials | Evolved 2 slots: Propulsion x1, Utility x1 4286 | -8/Materials | Lost 3 allies 4485 | -8/Materials | Found Prototype Device 4485 | -8/Materials | Identified Active Sensor Suite 4552 | -8/Materials | Lost 8 parts (1p4n2u1w) 4589 | -8/Materials | Core integrity fell below 50% 4610 | -8/Materials | Destroyed 10 combat bots 4741 | -8/Materials | Build established: Scavenger-Skirmisher 4952 | -8/Materials | Discovered new exit (range 13) 5038 | -8/Materials | Identified exit to Factory 5049 | -8/Materials | Entered Factory 5049 | -7/Factory | Evolved 2 slots: Power x1, Utility x1 5269 | -7/Factory | Build established: Skirmisher 5664 | -7/Factory | Garrison activated, responded to threat 6122 | -7/Factory | Build established: Assassin 6346 | -7/Factory | Lost 3 parts (1p1n1u) 6451 | -7/Factory | Lost 3 parts (3n) 6488 | -7/Factory | Allied Derelicts emerged from ambush trap array 6586 | -7/Factory | Discovered new exit (range 8) 6601 | -7/Factory | Build established: Mutant 6633 | -7/Factory | Entered Lower Caves 6638 | -7/Lower Caves | Encountered a Warlord checkpoint 6851 | -7/Lower Caves | Discovered new exit (range 9) 6903 | -7/Lower Caves | Spotted B-75 Beast 6932 | -7/Lower Caves | Entered another Lower Caves area 6946 | -7/Lower Caves | Discovered new exit (range 16) 6983 | -7/Lower Caves | Identified exit to Data Miner 6990 | -7/Lower Caves | Entered an active Warlord outpost 6999 | -7/Lower Caves | Learned 8 Factory zone layouts 6999 | -7/Lower Caves | Learned Armory trap positions 6999 | -7/Lower Caves | Learned Research terminal intel 6999 | -7/Lower Caves | Learned Factory stockpile data 7214 | -7/Lower Caves | Encountered a Warlord checkpoint 7222 | -7/Lower Caves | Acquired the password to a Derelict Tinkerer's latest research 7235 | -7/Lower Caves | Found Prototype Special Weapon 7241 | -7/Lower Caves | Entered Data Miner 7241 | -7/Data Miner | Discovered new exit (range 6) 7251 | -7/Data Miner | Met Data Miner 7260 | -7/Data Miner | Acquired the access code to Warlord's prototype stash 7260 | -7/Data Miner | Learned location of Section 7 (-2) 7269 | -7/Data Miner | Received God Mode back door access code from Data Miner 7286 | -7/Data Miner | Entered Proximity Caves 7336 | -6/Proximity Caves | Spotted B-75 Beast 7362 | -6/Proximity Caves | Attracted the attention of an 0b10 outpost 7421 | -6/Proximity Caves | Lost 3 parts (3n) 7466 | -6/Proximity Caves | Core integrity fell below 50% 7487 | -6/Proximity Caves | Learned Factory garrison access intel 7513 | -6/Proximity Caves | Escorted by Enhanced Grunt 7522 | -6/Proximity Caves | Core integrity fell below 20% 7531 | -6/Proximity Caves | Destroyed by H-66 Slayer with Gauss Rifle Last Messages --------------- 07413_ Gravmag System fries itself beyond repair. 07438_ 83-0PY(S) suffers critical hit (Burn). 07462_ Impact Mace destroyed. 07482_ Acquired 2 matter. 07487_ Acquired derelict log, extracted data. Data stored: Factory garrison access intel. 07492_ Penetrated by Slug. 07492_ Impact Mace destroyed. 07496_ Penetrated by Slug. 07512_ Slug penetrates H-66 Slayer. 07513_ Enhanced Grunt: "Protecting LRC-V3." 07514_ Slug penetrates Enhanced Grunt. 07515_ H-66 Slayer destroyed. 07518_ Enhanced Grunt destroyed. 07518_ Slug penetrates Wall. 07523_ Gauss Rifle fries itself beyond repair. 07528_ Slug penetrates Wall. 07528_ Critical hit (Burn: +50). 07529_ Targeting Computer fries itself beyond repair. 07531_ Penetrated by Slug. Map ----- +----------------------------------------------------+ | ## ##"#????? ##??????????# ###??????? | | ## #"#????? #??????????# #### #????????? | | ### ##????? ??????????# #??# #????????? | | ### ##????# ??????????# #### #????????? | | ##???# #??????????# #????????? | | ##?## #?????????## #????????? | | %### #?# #?????????# #####????????? | | #### #?? #????????## ##????????????? | | #?# #??? #????????# #?????????????? | | = #?# #???# #????????# #?????????????? | | %! " ### ###### #????????## #?????????????? | | # "%"## ## ##????????# ##????????????? | | ## " #####????# ##???????????? | | ?## ## ##??## ##??????????? | | #### ### #### ##?????????? | | "# "### ####?# % != #?????????? | | #####?# #????## !%% ##?????????? | | ??????# ?????#### % ! ##??????????? | | ??????# ????????### lgg h ##???????????? | | ??????# ??????????## ##?##?????????? | | ??????# ????######## ### #?????????? | | ?????? ## ## l ##????????? | | ????? #??# ### ##???????? | | ???? %= ????# ##### #### #???????? | | ???## ???????????## ## ##???????? | | ????## ???????????# @ ### ####????????? | | ?????## ???????????# ###?# ##???????????? | | ???????? ?????????# ????## ####????????????? | | ?????????????????# ?????####???????????????? | | ????????????????# ????????????????????????? | | ???????????????# ## ??????????????????????????? | | ?????????????? ??##??????????????????????????? | | ????????????? ???????????????????????????????? | | ?????????????# ????????????????????????????????? | | ?????????????###?????????????????????????????????? | | ?????????????????????????????????????????????????? | | ?????????????????????????????????????????????????? | | ?????????????????????????????????????????????????? | | ?????????????????????????????????????????????????? | | ?????????????????????????????????????????????????? | | ?????????????????????????????????????????????????? | | ?????????????????????????????????????????????????? | | ?????????????????????????????????????????????????? | | ?????????????????????????????????????????????????? | | ?????????????????????????????????????????????????? | | ?????????????????????????????????????????????????? | | ?????????????????????????????????????????????????? | | ?????????????????????????????????????????????????? | | ?????????????????????????????????????????????????? | | ?????????????????????????????????????????????????? | +----------------------------------------------------+ Best States ------------- Heat Dissipation 59 Coolant Potential 50 Energy Generation 25 Energy Capacity 350 Matter Stores 300 Matter Capacity 300 Sight Range 16 Robot Scan Range 20 Terrain Scan Density 10 Armor Coverage 825 Resistance: EX 25 Phase Shifting 5 Evasion (%) 64 Recoil Reduction 4 Item Schematics ----------------- Adv. VSS Leg | -7/Data Miner | Free KE Penetrator | -7/Data Miner | Free Hvy. Phase Cannon | -7/Data Miner | Free Imp. Transmission Jammer | -7/Data Miner | Free Com. Ion Cannon | -7/Data Miner | Free Gyrokinetic Inverter | -7/Data Miner | Free Exp. Targeting Computer | -7/Data Miner | Free Cld. Aerolev Unit | -7/Data Miner | Free Lgt. Regenerative Plating | -7/Data Miner | Free Combat Drone Bay | -7/Data Miner | Free Robot Schematics ------------------ Y-54 Guardian | -7/Data Miner | Free G-47 Trooper | -7/Data Miner | Free M-22 Extractor | -7/Data Miner | Free B-48 Gladiator | -7/Data Miner | Free P-60 Hacker | -7/Data Miner | Free H-55 Commando | -7/Data Miner | Free Fabricated ------------ Nothing Repaired ---------- Nothing Studied --------- Lgt. Treads | -9/Materials | Hacked Autogun | -9/Materials | Hacked Cesium-ion Thruster | -7/Factory | Hacked Alien Tech Used ----------------- None Achievements -------------- Some Acronyms Are Better Than Others Challenges ------------ None Game ------ Seed OvertunedDeliveryFocus Manual? 0 Play Time 00:55:16 Cumulative 211.1 hours Start 2026.08.27 @ 14:25:25 End 2026.08.27 @ 15:21:23 Sessions 1 Manual Loads 0 Difficulty Rogue Special Mode None Game No. 335 Rogue 332 Adventurer 3 Explorer 0 Win Type - Total 1 Types 1/0/0/0/0/0/0/0/0/0 Lore% 65 Gallery% 56 Achievement% 29 Wizard Run 0 Options --------- Layout 0 ASCII 0 Keyboard 0 Movement Mouse Keybinds 0 Fullscreen 2 Font 18/SmallcapsGlow Map View 76x50 Zoom Use 0% Tactical HUD 1 Map Filters NONE Filters NONE Steam 1 RUN: 734ae350-c2d8-4730-a637-e2a020c72902